fUST/lending_fUST_20250118
["ID","MTS","AMOUNT","RATE_DAILY","PERIOD"]
[349386179,1737145844002,-500.0,0.00022602,3]
[349386181,1737145844012,-500.0,0.00022602,3]
[349386183,1737145844021,-683.7,0.00022602,3]
[349386185,1737145844030,-261.05,0.00022602,3]
[349386187,1737145844039,-500.0,0.00022602,3]
[349386189,1737145844049,-1168.13,0.00022602,3]
[349386191,1737145844058,-606.49,0.00022602,3]
[349386193,1737145844071,-500.0,0.00022602,3]
[349386195,1737145844081,-500.0,0.00022602,3]
[349386197,1737145844091,-744.85,0.00022602,3]
[349386199,1737145844100,-500.0,0.00022602,3]
[349386201,1737145844111,-500.0,0.00022602,3]
[349386203,1737145844120,-500.0,0.00022602,3]
[349386205,1737145844130,-3815.76,0.00022602,3]
[349386207,1737145844141,-596.55,0.00022602,3]
[349386209,1737145844150,-500.0,0.00022602,3]
[349386211,1737145844160,-500.0,0.00022602,3]
[349386213,1737145844169,-632.3,0.00022602,3]
[349386215,1737145844179,-1614.16,0.00022602,3]
[349386217,1737145844188,-1013.41,0.00022602,3]
[349386219,1737145844198,-1281.53,0.00022602,3]
[349386221,1737145844207,-6304.05,0.00022602,3]
[349386222,1737145844216,-500.0,0.00022602,3]
[349386224,1737145844225,-202.92545504,0.00022637,3]
[349386226,1737145844235,-485.807,0.00022642,2]
[349386228,1737145844244,-395.0,0.00022642,2]
[349386230,1737145844253,-500.0,0.00022738,2]
[349386233,1737145844263,-623.03590335,0.00022738,2]
[349386235,1737145844273,-500.0,0.00022739,2]
[349386237,1737145844283,-584.94,0.00022739,3]
[349386239,1737145844293,-500.0,0.00022739,3]
[349386241,1737145844304,-500.0,0.00022739,3]
[349386243,1737145844314,-683.7,0.00022739,3]
[349386245,1737145844326,-500.0,0.00022739,3]
[349386247,1737145844335,-1168.13,0.00022739,3]
[349386249,1737145844345,-606.49,0.00022739,3]
[349386251,1737145844355,-500.0,0.00022739,3]
[349386253,1737145844364,-500.0,0.00022739,3]
[349386255,1737145844375,-744.85,0.00022739,3]
[349386257,1737145844385,-500.0,0.00022739,3]
[349386259,1737145844394,-500.0,0.00022739,3]
[349386261,1737145844404,-500.0,0.00022739,3]
[349386264,1737145844414,-3815.76,0.00022739,3]
[349386265,1737145844423,-596.55,0.00022739,3]
[349386267,1737145844432,-500.0,0.00022739,3]
[349386269,1737145844441,-500.0,0.00022739,3]
[349386272,1737145844451,-632.3,0.00022739,3]
[349386274,1737145844461,-1614.16,0.00022739,3]
[349386276,1737145844471,-1013.41,0.00022739,3]
[349386278,1737145844481,-1281.53,0.00022739,3]
[349386280,1737145844490,-548.87008301,0.00022739,3]
[349386282,1737145844499,-6304.05,0.00022739,3]
[349386284,1737145844509,-202.92545504,0.00022795,3]
[349386285,1737145844518,-254.83073656,0.00022863,2]
[349386288,1737145844527,-500.0,0.00022876,2]
[349386290,1737145844537,-584.94,0.00022876,3]
[349386292,1737145844546,-500.0,0.00022876,3]
[349386293,1737145844556,-500.0,0.00022876,3]
[349386295,1737145844566,-683.7,0.00022876,3]
[349386297,1737145844577,-500.0,0.00022876,3]
[349386299,1737145844586,-1168.13,0.00022876,3]
[349386301,1737145844595,-606.49,0.00022876,3]
[349386303,1737145844604,-500.0,0.00022876,3]
[349386305,1737145844614,-500.0,0.00022876,3]
[349386307,1737145844624,-744.85,0.00022876,3]
[349386309,1737145844634,-500.0,0.00022876,3]
[349386311,1737145844643,-500.0,0.00022876,3]
[349386313,1737145844652,-500.0,0.00022876,3]
[349386315,1737145844664,-3815.76,0.00022876,3]
[349386317,1737145844673,-596.55,0.00022876,3]
[349386319,1737145844682,-500.0,0.00022876,3]
[349386321,1737145844692,-500.0,0.00022876,3]
[349386323,1737145844702,-632.3,0.00022876,3]
[349386326,1737145844712,-1614.16,0.00022876,3]
[349386328,1737145844722,-1013.41,0.00022876,3]
[349386329,1737145844731,-1281.53,0.00022876,3]
[349386331,1737145844741,-6304.05,0.00022876,3]
[349386334,1737145844751,-500.0,0.00022891,2]
[349386335,1737145844760,-500.0,0.00022891,2]
[349386337,1737145844770,-979.31487982,0.000229,2]
[349386339,1737145844779,-202.92545504,0.00022953,3]
[349386342,1737145844789,-7438.69753278,0.00023,2]
[349386344,1737145844799,-7438.69753278,0.00023,3]
[349386346,1737145844808,-500.0,0.00023013,2]
[349386348,1737145844818,-584.94,0.00023013,3]
[349386350,1737145844829,-500.0,0.00023013,3]
[349386352,1737145844839,-500.0,0.00023013,3]
[349386354,1737145844848,-683.7,0.00023013,3]
[349386356,1737145844858,-500.0,0.00023013,3]
[349386358,1737145844867,-1168.13,0.00023013,3]
[349386360,1737145844877,-606.49,0.00023013,3]
[349386362,1737145844886,-500.0,0.00023013,3]
[349386364,1737145844896,-392.11536355,0.00023013,3]
[349386366,1737145844906,-744.85,0.00023013,3]
[349386368,1737145844916,-500.0,0.00023013,3]
[349386370,1737145844925,-500.0,0.00023013,3]
[349386372,1737145844935,-500.0,0.00023013,3]
[349386374,1737145844944,-3815.76,0.00023013,3]
[349386376,1737145844954,-596.55,0.00023013,3]
[349386378,1737145844963,-500.0,0.00023013,3]
[349386379,1737145844971,-425.89803322,0.00023013,3]
[349386382,1737145844982,-632.3,0.00023013,3]
[349386384,1737145844992,-1614.16,0.00023013,3]
[349386386,1737145845002,-1013.41,0.00023013,3]
[349386388,1737145845011,-1281.53,0.00023013,3]
[349386390,1737145845025,-156.0,0.00023014,2]
[349386392,1737145845035,-202.92545504,0.00023111,3]
[349386394,1737145845044,-254.83073656,0.00023125,2]
[349386397,1737145845060,-500.0,0.0002315,2]
[349386399,1737145845077,-584.94,0.0002315,3]
[349386401,1737145845087,-500.0,0.0002315,3]
[349386403,1737145845101,-500.0,0.0002315,3]
[349386406,1737145845111,-683.7,0.0002315,3]
[349386408,1737145845121,-186.04038314,0.0002315,3]
[349386426,1737145845292,-1168.13,0.0002315,3]
[349386428,1737145845302,-606.49,0.0002315,3]
[349386430,1737145845312,-500.0,0.0002315,3]
[349386432,1737145845322,-744.85,0.0002315,3]
[349386434,1737145845333,-500.0,0.0002315,3]
[349386436,1737145845343,-500.0,0.0002315,3]
[349386438,1737145845352,-500.0,0.0002315,3]
[349386440,1737145845361,-3815.76,0.0002315,3]
[349386442,1737145845371,-596.55,0.0002315,3]
[349386444,1737145845380,-201.27644111,0.0002315,3]
[349386446,1737145845390,-632.3,0.0002315,3]
[349386448,1737145845400,-1614.16,0.0002315,3]
[349386450,1737145845409,-1013.41,0.0002315,3]
[349386452,1737145845419,-1281.53,0.0002315,3]
[349386454,1737145845428,-202.92545504,0.00023268,3]
[349386456,1737145845437,-500.0,0.00023287,2]
[349386458,1737145845447,-584.94,0.00023287,3]
[349386460,1737145845456,-500.0,0.00023287,3]
[349386462,1737145845467,-500.0,0.00023287,3]
[349386464,1737145845477,-683.7,0.00023287,3]
[349386466,1737145845485,-1168.13,0.00023287,3]
[349386468,1737145845494,-606.49,0.00023287,3]
[349386470,1737145845504,-500.0,0.00023287,3]
[349386472,1737145845513,-744.85,0.00023287,3]
[349386474,1737145845523,-500.0,0.00023287,3]
[349386476,1737145845532,-500.0,0.00023287,3]
[349386478,1737145845541,-500.0,0.00023287,3]
[349386480,1737145845551,-3815.76,0.00023287,3]
[349386482,1737145845560,-596.55,0.00023287,3]
[349386484,1737145845569,-632.3,0.00023287,3]
[349386486,1737145845580,-1614.16,0.00023287,3]
[349386487,1737145845590,-1013.41,0.00023287,3]
[349386489,1737145845599,-1281.53,0.00023287,3]
[349386492,1737145845609,-823.0,0.00023381,2]
[349386494,1737145845619,-254.83073656,0.00023386,2]
[349386496,1737145845628,-500.0,0.00023424,2]
[349386497,1737145845638,-584.94,0.00023424,3]
[349386499,1737145845647,-500.0,0.00023424,3]
[349386501,1737145845657,-500.0,0.00023424,3]
[349386503,1737145845666,-683.7,0.00023424,3]
[349386505,1737145845676,-1168.13,0.00023424,3]
[349386507,1737145845685,-606.49,0.00023424,3]
[349386509,1737145845695,-500.0,0.00023424,3]
[349386511,1737145845705,-744.85,0.00023424,3]
[349386513,1737145845714,-500.0,0.00023424,3]
[349386515,1737145845724,-500.0,0.00023424,3]
[349386517,1737145845734,-500.0,0.00023424,3]
[349386519,1737145845744,-3815.76,0.00023424,3]
[349386521,1737145845755,-596.55,0.00023424,3]
[349386523,1737145845765,-632.3,0.00023424,3]
[349386526,1737145845775,-1614.16,0.00023424,3]
[349386528,1737145845785,-1013.41,0.00023424,3]
[349386530,1737145845794,-1281.53,0.00023424,3]
[349386532,1737145845804,-202.92545504,0.00023426,3]
[349386534,1737145845813,-162.415186,0.00023435,2]
[349386536,1737145845824,-1000.0,0.00023517,2]
[349386538,1737145845833,-500.0,0.00023561,2]
[349386541,1737145845843,-584.94,0.00023561,3]
[349386542,1737145845853,-500.0,0.00023561,3]
[349386545,1737145845863,-543.24575728,0.00023561,3]
[349386547,1737145845872,-683.7,0.00023561,3]
[349386548,1737145845881,-1168.13,0.00023561,3]
[349386551,1737145845891,-606.49,0.00023561,3]
[349386553,1737145845901,-500.0,0.00023561,3]
[349386555,1737145845910,-744.85,0.00023561,3]
[349386557,1737145845920,-500.0,0.00023561,3]
[349386560,1737145845930,-500.0,0.00023561,3]
[349386561,1737145845940,-500.0,0.00023561,3]
[349386564,1737145845951,-3815.76,0.00023561,3]
[349386566,1737145845960,-596.55,0.00023561,3]
[349386568,1737145845970,-632.3,0.00023561,3]
[349386570,1737145845980,-1614.16,0.00023561,3]
[349386572,1737145845990,-1013.41,0.00023561,3]
[349386574,1737145846000,-1281.53,0.00023561,3]
[349386576,1737145846010,-202.92545504,0.00023584,3]
[349386578,1737145846019,-1661.0,0.000236,2]
[349386580,1737145846028,-2000.0,0.000236,2]
[349386582,1737145846037,-183.06,0.000236,31]
[349386584,1737145846047,-183.06,0.000236,31]
[349386586,1737145846056,-183.06,0.000236,31]
[349386588,1737145846066,-183.06,0.000236,31]
[349386589,1737145846080,-183.06,0.000236,31]
[349386591,1737145846090,-183.06,0.000236,31]
[349386594,1737145846101,-183.06,0.000236,31]
[349386596,1737145846111,-183.06,0.000236,31]
[349386598,1737145846122,-183.06,0.000236,31]
[349386600,1737145846131,-183.06,0.000236,31]
[349386602,1737145846140,-183.06,0.000236,31]
[349386603,1737145846150,-183.06,0.000236,31]
[349386605,1737145846159,-183.06,0.000236,31]
[349386607,1737145846170,-183.06,0.000236,31]
[349386608,1737145846180,-183.06,0.000236,31]
[349386609,1737145846189,-183.06,0.000236,31]
[349386610,1737145846199,-254.83073656,0.00023648,2]
[349386611,1737145846208,-500.0,0.00023698,2]
[349386612,1737145846218,-584.94,0.00023698,3]
[349386613,1737145846227,-500.0,0.00023698,3]
[349386614,1737145846236,-683.7,0.00023698,3]
[349386615,1737145846245,-1168.13,0.00023698,3]
[349386616,1737145846255,-606.49,0.00023698,3]
[349386617,1737145846265,-500.0,0.00023698,3]
[349386618,1737145846274,-744.85,0.00023698,3]
[349386619,1737145846284,-500.0,0.00023698,3]
[349386620,1737145846293,-500.0,0.00023698,3]
[349386622,1737145846303,-500.0,0.00023698,3]
[349386624,1737145846313,-3815.76,0.00023698,3]
[349386626,1737145846325,-596.55,0.00023698,3]
[349386628,1737145846337,-632.3,0.00023698,3]
[349386630,1737145846348,-1614.16,0.00023698,3]
[349386632,1737145846358,-1013.41,0.00023698,3]
[349386634,1737145846368,-1281.53,0.00023698,3]
[349386636,1737145846378,-151.0,0.00023729,7]
[349386638,1737145846387,-151.0,0.00023729,7]
[349386640,1737145846397,-151.0,0.00023729,7]
[349386642,1737145846407,-151.0,0.00023729,7]
[349386644,1737145846417,-174.39467948,0.0002374,2]
[349386646,1737145846426,-202.92545504,0.00023742,3]
[349386648,1737145846436,-500.0,0.00023743,2]
[349386650,1737145846446,-151.0,0.00023748,7]
[349386652,1737145846456,-151.0,0.00023748,7]
[349386655,1737145846465,-151.0,0.00023748,7]
[349386656,1737145846475,-151.0,0.00023748,7]
[349386659,1737145846484,-151.0,0.00023748,7]
[349386662,1737145846494,-151.0,0.00023748,7]
[349386663,1737145846503,-151.0,0.00023748,7]
[349386665,1737145846512,-151.0,0.00023748,7]
[349386667,1737145846521,-151.0,0.00023748,7]
[349386669,1737145846531,-151.0,0.00023748,2]
[349386671,1737145846540,-151.0,0.00023748,2]
[349386672,1737145846550,-151.0,0.00023748,2]
[349386673,1737145846559,-151.0,0.00023748,2]
[349386674,1737145846568,-151.0,0.00023748,2]
[349386675,1737145846580,-151.0,0.00023748,7]
[349386676,1737145846590,-151.0,0.00023748,7]
[349386677,1737145846599,-151.0,0.00023748,7]
[349386678,1737145846609,-151.0,0.00023748,7]
[349386679,1737145846619,-151.0,0.00023748,7]
[349386680,1737145846628,-151.0,0.00023748,7]
[349386681,1737145846637,-151.0,0.00023748,7]
[349386682,1737145846647,-210.580246,0.00023748,7]
[349386683,1737145846655,-151.0,0.00023748,7]
[349386684,1737145846665,-151.0,0.00023748,7]
[349386685,1737145846675,-151.0,0.00023748,7]
[349386686,1737145846685,-300.89996,0.00023748,7]
[349386687,1737145846695,-300.89996,0.00023748,7]
[349386688,1737145846704,-300.89996,0.00023748,7]
[349386689,1737145846713,-300.89996,0.00023748,7]
[349386690,1737145846723,-300.89996,0.00023748,7]
[349386691,1737145846732,-300.89996,0.00023748,7]
[349386692,1737145846742,-300.89996,0.00023748,7]
[349386693,1737145846751,-300.89996,0.00023748,7]
[349386694,1737145846761,-300.89996,0.00023748,7]
[349386695,1737145846770,-300.89996,0.00023748,7]
[349386696,1737145846780,-300.89996,0.00023748,7]
[349386697,1737145846789,-300.89996,0.00023748,7]
[349386698,1737145846798,-300.89996,0.00023748,7]
[349386699,1737145846806,-300.89996,0.00023748,7]
[349386700,1737145846815,-300.89996,0.00023748,7]
[349386701,1737145846826,-300.89996,0.00023748,7]
[349386702,1737145846835,-300.89996,0.00023748,7]
[349386703,1737145846843,-300.89996,0.00023748,7]
[349386704,1737145846852,-300.89996,0.00023748,7]
[349386705,1737145846862,-300.89995,0.00023748,7]
[349386706,1737145846870,-151.0,0.00023748,7]
[349386707,1737145846879,-151.0,0.00023748,7]
[349386708,1737145846888,-151.0,0.00023748,7]
[349386709,1737145846900,-151.0,0.00023748,7]
[349386710,1737145846909,-151.0,0.00023748,7]
[349386711,1737145846919,-151.0,0.00023748,7]
[349386712,1737145846928,-151.0,0.00023748,7]
[349386713,1737145846938,-151.0,0.00023748,7]
[349386715,1737145846947,-151.0,0.00023748,7]
[349386716,1737145846956,-193.817208,0.00023748,7]
[349386718,1737145846965,-151.0,0.00023748,7]
[349386720,1737145846975,-151.0,0.00023748,7]
[349386722,1737145846984,-151.0,0.00023748,7]
[349386724,1737145846994,-151.0,0.00023748,7]
[349386726,1737145847004,-151.0,0.00023748,7]
[349386727,1737145847014,-151.0,0.00023748,7]
[349386728,1737145847023,-151.0,0.00023748,7]
[349386729,1737145847033,-151.0,0.00023748,7]
[349386730,1737145847043,-151.0,0.00023748,7]
[349386731,1737145847052,-151.0,0.00023748,7]
[349386732,1737145847061,-151.0,0.00023748,7]
[349386733,1737145847072,-151.0,0.00023748,7]
[349386734,1737145847082,-184.687052,0.00023748,7]
[349386735,1737145847092,-151.0,0.00023748,7]
[349386736,1737145847101,-344.654342,0.00023748,7]
[349386737,1737145847111,-344.654342,0.00023748,7]
[349386738,1737145847119,-344.654342,0.00023748,7]
[349386739,1737145847128,-344.654342,0.00023748,7]
[349386740,1737145847137,-151.0,0.00023748,7]
[349386741,1737145847146,-344.654342,0.00023748,7]
[349386742,1737145847156,-151.0,0.00023748,7]
[349386743,1737145847167,-344.654342,0.00023748,7]
[349386744,1737145847177,-151.0,0.00023748,7]
[349386745,1737145847187,-344.654342,0.00023748,7]
[349386746,1737145847196,-151.0,0.00023748,7]
[349386747,1737145847205,-344.654342,0.00023748,7]
[349386748,1737145847215,-151.0,0.00023748,7]
[349386749,1737145847224,-344.654342,0.00023748,7]
[349386750,1737145847237,-151.0,0.00023748,7]
[349386751,1737145847251,-344.654342,0.00023748,7]
[349386752,1737145847262,-151.0,0.00023748,7]
[349386753,1737145847272,-344.654342,0.00023748,7]
[349386754,1737145847282,-151.0,0.00023748,7]
[349386755,1737145847292,-344.654342,0.00023748,7]
[349386756,1737145847302,-151.0,0.00023748,7]
[349386757,1737145847312,-344.654342,0.00023748,7]
[349386758,1737145847322,-194.149411,0.00023748,7]
[349386759,1737145847332,-344.654342,0.00023748,7]
[349386760,1737145847342,-344.654342,0.00023748,7]
[349386761,1737145847352,-344.654342,0.00023748,7]
[349386762,1737145847362,-344.654342,0.00023748,7]
[349386763,1737145847371,-344.654342,0.00023748,7]
[349386764,1737145847381,-344.654342,0.00023748,7]
[349386765,1737145847391,-344.654342,0.00023748,7]
[349386766,1737145847401,-265.186723,0.00023748,7]
[349386767,1737145847410,-265.186723,0.00023748,7]
[349386768,1737145847419,-265.186723,0.00023748,7]
[349386769,1737145847432,-265.186723,0.00023748,7]
[349386770,1737145847444,-265.186723,0.00023748,7]
[349386771,1737145847453,-265.186723,0.00023748,7]
[349386772,1737145847463,-151.0,0.00023748,7]
[349386773,1737145847472,-265.186723,0.00023748,7]
[349386774,1737145847482,-265.186723,0.00023748,7]
[349386775,1737145847491,-265.186723,0.00023748,7]
[349386776,1737145847501,-265.186723,0.00023748,7]
[349386777,1737145847510,-265.186723,0.00023748,7]
[349386778,1737145847520,-265.186723,0.00023748,7]
[349386779,1737145847529,-265.186723,0.00023748,7]
[349386780,1737145847539,-265.186723,0.00023748,7]
[349386781,1737145847548,-265.186723,0.00023748,7]
[349386782,1737145847558,-265.186723,0.00023748,7]
[349386783,1737145847567,-265.186723,0.00023748,7]
[349386784,1737145847578,-265.186723,0.00023748,7]
[349386785,1737145847588,-265.186723,0.00023748,7]
[349386786,1737145847597,-265.186725,0.00023748,7]
[349386787,1737145847607,-675.147199,0.00023748,7]
[349386788,1737145847617,-675.147199,0.00023748,7]
[349386789,1737145847627,-675.147199,0.00023748,7]
[349386790,1737145847636,-675.147199,0.00023748,7]
[349386791,1737145847646,-675.147199,0.00023748,7]
[349386792,1737145847655,-675.147199,0.00023748,7]
[349386793,1737145847664,-675.147199,0.00023748,7]
[349386794,1737145847674,-675.147199,0.00023748,7]
[349386795,1737145847683,-675.147199,0.00023748,7]
[349386796,1737145847692,-675.147199,0.00023748,7]
[349386797,1737145847701,-675.147199,0.00023748,7]
[349386798,1737145847710,-675.147199,0.00023748,7]
[349386799,1737145847719,-675.147199,0.00023748,7]
[349386800,1737145847828,-675.147199,0.00023748,7]
[349386801,1737145847838,-675.147199,0.00023748,7]
[349386802,1737145847848,-675.147199,0.00023748,7]
[349386803,1737145847858,-675.147199,0.00023748,7]
[349386804,1737145847867,-675.147199,0.00023748,7]
[349386805,1737145847878,-675.147199,0.00023748,7]
[349386806,1737145847887,-675.147192,0.00023748,7]
[349386807,1737145847903,-151.0,0.00023748,7]
[349386808,1737145847913,-151.0,0.00023748,7]
[349386809,1737145847923,-151.0,0.00023748,7]
[349386810,1737145847933,-214.43047,0.00023748,7]
[349386811,1737145847943,-151.0,0.00023748,7]
[349386812,1737145847953,-151.0,0.00023748,7]
[349386813,1737145847963,-151.0,0.00023748,7]
[349386814,1737145847973,-151.0,0.00023748,7]
[349386815,1737145847983,-151.0,0.00023748,7]
[349386816,1737145847992,-151.0,0.00023748,7]
[349386817,1737145848001,-151.0,0.00023748,7]
[349386818,1737145848011,-151.0,0.00023748,7]
[349386819,1737145848021,-151.0,0.00023748,7]
[349386820,1737145848031,-151.0,0.00023748,7]
[349386821,1737145848041,-151.0,0.00023748,7]
[349386822,1737145848051,-151.0,0.00023748,7]
[349386823,1737145848062,-151.0,0.00023748,7]
[349386824,1737145848073,-151.0,0.00023748,7]
[349386825,1737145848084,-151.0,0.00023748,7]
[349386826,1737145848094,-201.483846,0.00023748,7]
[349386827,1737145848104,-585.416636,0.00023748,7]
[349386828,1737145848114,-585.416636,0.00023748,7]
[349386829,1737145848124,-585.416636,0.00023748,7]
[349386830,1737145848134,-585.416636,0.00023748,7]
[349386831,1737145848143,-585.416636,0.00023748,7]
[349386832,1737145848153,-585.416636,0.00023748,7]
[349386833,1737145848162,-585.416636,0.00023748,7]
[349386834,1737145848172,-585.416636,0.00023748,7]
[349386835,1737145848184,-585.416636,0.00023748,7]
[349386836,1737145848194,-585.416636,0.00023748,7]
[349386837,1737145848204,-585.416636,0.00023748,7]
[349386838,1737145848213,-585.416636,0.00023748,7]
[349386839,1737145848223,-585.416636,0.00023748,7]
[349386840,1737145848233,-585.416636,0.00023748,7]
[349386841,1737145848242,-585.416636,0.00023748,7]
[349386842,1737145848251,-585.416636,0.00023748,7]
[349386843,1737145848261,-585.416636,0.00023748,7]
[349386844,1737145848271,-585.416636,0.00023748,7]
[349386845,1737145848281,-585.416636,0.00023748,7]
[349386846,1737145848291,-585.416626,0.00023748,7]
[349386847,1737145848301,-1231.624896,0.00023748,7]
[349386848,1737145848311,-1231.624896,0.00023748,7]
[349386849,1737145848321,-1231.624896,0.00023748,7]
[349386850,1737145848331,-1231.624896,0.00023748,7]
[349386851,1737145848342,-1231.624896,0.00023748,7]
[349386852,1737145848352,-1231.624896,0.00023748,7]
[349386853,1737145848363,-1231.624896,0.00023748,7]
[349386854,1737145848373,-1231.624896,0.00023748,7]
[349386855,1737145848383,-1231.624896,0.00023748,7]
[349386856,1737145848393,-1231.624896,0.00023748,7]
[349386857,1737145848403,-1231.624896,0.00023748,7]
[349386858,1737145848413,-1231.624896,0.00023748,7]
[349386859,1737145848423,-1231.624896,0.00023748,7]
[349386860,1737145848433,-1231.624896,0.00023748,7]
[349386861,1737145848443,-1231.624896,0.00023748,7]
[349386862,1737145848453,-1231.624896,0.00023748,7]
[349386863,1737145848462,-1231.624896,0.00023748,7]
[349386864,1737145848472,-1231.624896,0.00023748,7]
[349386865,1737145848482,-1231.624896,0.00023748,7]
[349386866,1737145848492,-1231.624898,0.00023748,7]
[349386867,1737145848502,-151.0,0.00023748,7]
[349386868,1737145848512,-151.0,0.00023748,7]
[349386869,1737145848523,-151.0,0.00023748,7]
[349386870,1737145848532,-284.076482,0.00023748,7]
[349386871,1737145848542,-151.0,0.00023748,7]
[349386872,1737145848552,-151.0,0.00023748,7]
[349386873,1737145848562,-151.0,0.00023748,7]
[349386874,1737145848573,-151.0,0.00023748,7]
[349386875,1737145848584,-151.0,0.00023748,7]
[349386876,1737145848594,-2812.7632,0.00023748,7]
[349386877,1737145848604,-151.0,0.00023748,7]
[349386878,1737145848614,-2812.7632,0.00023748,7]
[349386879,1737145848624,-2812.7632,0.00023748,7]
[349386880,1737145848635,-2812.7632,0.00023748,7]
[349386881,1737145848645,-2812.7632,0.00023748,7]
[349386882,1737145848656,-2812.7632,0.00023748,7]
[349386883,1737145848666,-2812.7632,0.00023748,7]
[349386884,1737145848676,-2812.7632,0.00023748,7]
[349386885,1737145848687,-2812.7632,0.00023748,7]
[349386886,1737145848697,-2812.7632,0.00023748,7]
[349386887,1737145848707,-2812.7632,0.00023748,7]
[349386888,1737145848716,-2812.7632,0.00023748,7]
[349386889,1737145848726,-10348.35151099,0.00023748,5]
[349386890,1737145848738,-12584.82835812,0.00023748,5]
[349386891,1737145848748,-534244.5021774,0.00023748,61]
[349386892,1737145848841,-668433.34647624,0.00023748,61]
[349386893,1737145848928,-6304.05,0.00023013,3]
[349386894,1737145848939,-6304.05,0.0002315,3]
[349386895,1737145848949,-3255.69701789,0.00023287,3]
[349386896,1737145848961,-3048.35298211,0.00023287,3]
[349386897,1737145848972,-734.15203044,0.00023424,3]
[349386898,1737145848984,-5569.89796956,0.00023424,3]
[349386899,1737145848994,-1400.98163135,0.00023561,3]
[349386900,1737145849007,-4903.06836865,0.00023561,3]
[349386901,1737145849017,-3433.29215715,0.00023698,3]
[349386902,1737145849030,-2870.75784285,0.00023698,3]
[349386903,1737145849039,-2812.7632,0.00023748,7]
[349386904,1737145849049,-2812.7632,0.00023748,7]
[349386905,1737145849059,-2812.7632,0.00023748,7]
[349386906,1737145849069,-2812.7632,0.00023748,7]
[349386907,1737145849085,-1671.34768602,0.00023748,7]
[349386908,1737145849100,-1141.41551398,0.00023748,7]
[349386909,1737145849110,-966.98448602,0.00023748,7]
[349386910,1737145849125,-979.07793737,0.00023748,7]
[349386911,1737145849138,-866.70077661,0.00023748,7]
[349386912,1737145849150,-153.29922339,0.00023748,7]
[349386913,1737145849163,-2659.46397661,0.00023748,7]
[349386914,1737145849174,-17267.37633167,0.00023748,61]
[349386915,1737145849235,-2812.763198,0.00023748,7]
[349386916,1737145849245,-4128.17724374,0.00023748,61]
[349386917,1737145849263,-1703.59999997,0.00023748,61]
[349386918,1737145849276,-94710.42960548,0.00023748,61]
[349386919,1737145849289,-23106.73072959,0.00023748,61]
[349386920,1737145849300,-3218.992,0.00023748,61]
[349386921,1737145849327,-231659.54094284,0.00023748,61]
[349386922,1737145849339,-46282.24735363,0.00023748,61]
[349386923,1737145849351,-32844.6239,0.00023748,61]
[349386924,1737145849362,-651.08189889,0.00023748,61]
[349386925,1737145849374,-40076.86647861,0.00023748,61]
[349386926,1737145849446,-500.0,0.00021917,3]
[349386927,1737145849456,-1076.5,0.00023748,61]
[349386928,1737145849469,-22438.60406386,0.00023748,61]
[349386929,1737146066895,162.262562,0.00013973,2]
[349386932,1737146268213,158.097181,0.0002411,120]
[349386947,1737147012532,162.104248,0.00013973,2]
[349387143,1737147038422,-321.30163543,0.00019,2]
[349387145,1737147038432,-300.0,0.00020849,2]
[349387147,1737147038441,-1026.04365788,0.0002085,2]